[Event "Seniors-LEM-65 Sachsen-Anhalt 2024"]
[Site "Magdeburg"]
[Date "2024.07.02"]
[Round "2.10"]
[White "Schober, Ralf"]
[Black "Luebeck, Stephan"]
[Result "1-0"]
[ECO "A42"]
[WhiteElo "2090"]
[BlackElo "1942"]
[Annotator "NA RC"]
[PlyCount "91"]
[EventDate "2024.06.25"]
[EventType "swiss"]
[EventCountry "GER"]
[SourceTitle "playchess.com"]
[Source "ChessBase"]
[SourceQuality "1"]
[TimeControl "40/5400+30:1800+30"]

1. d4 {[%emt 0:00:01]} g6 {[%emt 0:00:05]} 2. e4 {[%emt 0:00:26]} Bg7 {[%emt 0:00:03]} 3. c4 {[%emt 0:01:04]} d6 {[%emt 0:00:06]} 4. Nc3 {[%emt 0:04:34]} Nc6 {[%emt 0:00:09]} 5. d5 {[%emt 0:05:03]} Nd4 {[%emt 0:00:08]} 6. Be3 {[%emt 0:00:42]} e5 {[%emt 0:00:08]} 7. Nge2 {[%emt 0:04:17]} Nxe2 {[%emt 0:00:24]} 8. Bxe2 {[%emt 0:00:46]} f5 {[%emt 0:00:06]} 9. exf5 {[%emt 0:03:52]} gxf5 {[%emt 0:00:06]} 10. f4 {[%emt 0:03:09] A42: Modern Defence: Averbakh Variation.} e4 {[%emt 0:00:12]} 11. Qb3 {[%emt 0:00:37]} b6 {[%emt 0:12:17]} 12. O-O-O {[%emt 0:00:48]} Nf6 {[%emt 0:06:14]} 13. Nb5 {[%emt 0:03:03]} Qe7 {[%emt 0:03:51]} 14. Nd4 {[%emt 0:02:39]} Bd7 {[%emt 0:02:55]} 15. Rde1 {[%emt 0:02:25]} h5 {[%emt 0:02:15]} 16. Qd1 {[%emt 0:00:27]} a5 {[%emt 0:09:41]} 17. Qd2 {[%emt 0:11:15]} Kf7 {[%emt 0:06:24]} 18. a3 {[%emt 0:06:55]} Rae8 {[%emt 0:16:45]} 19. Kb1 {[%emt 0:08:10]} Ng4 {[%emt 0:02:50]} 20. Bxg4 {[%emt 0:00:18]} hxg4 {[%emt 0:00:13]} 21. g3 {[%emt 0:03:55]} Ra8 {[%emt 0:01:48]} 22. Qg2 $15 {[%emt 0:03:15]} Rh3 {[%emt 0:01:30]} 23. Qg1 {[%emt 0:08:17]} Qf6 {[%emt 0:02:38]} 24. Re2 {[%emt 0:02:32]} Rah8 {[%emt 0:02:13]} 25. Rg2 {[%emt 0:00:28]} Ra8 {[%emt 0:13:19]} 26. Qf2 {[%emt 0:00:47]} Qe7 {[%emt 0:01:21]} 27. Rd1 {[%emt 0:00:20]} Rhh8 {[%emt 0:01:18]} 28. Qf1 {[%emt 0:04:15]} Bf6 {[%emt 0:00:46]} 29. Rdd2 {[%emt 0:03:44]} a4 {[%emt 0:00:42]} 30. Qd1 {[%emt 0:00:45]} Rhb8 {[%emt 0:03:41]} 31. Nc6 {[%emt 0:03:33]} Bxc6 {[%emt 0:00:19]} 32. dxc6 {[%emt 0:00:02]} Ra5 {[%emt 0:03:12]} 33. Rd5 {[%emt 0:01:52]} Rxd5 {[%emt 0:05:18]} 34. cxd5 {[%emt 0:02:00]} b5 {[%emt 0:00:55]} 35. Rd2 {[%emt 0:04:23]} Qe8 {[%emt 0:01:25]} 36. h3 {[%emt 0:02:28]} Qg8 {[%emt 0:01:00]} 37. hxg4 {[%emt 0:00:12]} fxg4 {[%emt 0:01:10]} 38. Bd4 {[%emt 0:01:03]} Qg6 {[%emt 0:00:28]} 39. Bxf6 {[%emt 0:01:16]} Kxf6 {[%emt 0:00:32]} 40. Re2 {[%emt 0:00:07]} Re8 {[%emt 0:01:25]} 41. Qd4+ {[%emt 0:31:07]} Kf7 {[%emt 0:04:05]} 42. Ka2 {[%emt 0:00:00]} Qf5 {[%emt 0:02:12]} 43. Ka1 {[%emt 0:00:00]} Qh5 {[%emt 0:00:38]} 44. Ka2 {[%emt 0:00:00]} e3 {[%emt 0:01:54]} 45. Qd3 {[%emt 0:00:00]} Qh1 {[%emt 0:11:57]} 46. Qf5+ {[%emt 0:00:00]} 1-0

[Event "Seniors-LEM-65 Sachsen-Anhalt 2024"]
[Site "Magdeburg"]
[Date "2024.07.02"]
[Round "2.11"]
[White "Just, Joachim"]
[Black "Kolthoff, Siegmund"]
[Result "0-1"]
[ECO "D32"]
[WhiteElo "1909"]
[BlackElo "2090"]
[Annotator "NA RC"]
[PlyCount "51"]
[EventDate "2024.06.25"]
[EventType "swiss"]
[EventCountry "GER"]
[SourceTitle "playchess.com"]
[Source "ChessBase"]
[SourceQuality "1"]
[TimeControl "40/5400+30:1800+30"]

1. Nf3 {[%emt 0:00:12]} Nf6 {[%emt 0:01:09]} 2. c4 {[%emt 0:00:20]} c5 {[%emt 0:01:27]} 3. Nc3 {[%emt 0:01:15]} e6 {[%emt 0:01:32]} 4. e3 {[%emt 0:01:26]} d5 {[%emt 0:01:30]} 5. d4 {[%emt 0:01:55]} a6 {[%emt 0:01:09]} 6. dxc5 {[%emt 0:01:43]} Bxc5 {[%emt 0:00:37]} 7. cxd5 {[%emt 0:00:24]} exd5 {[%emt 0:00:12]} 8. Nd4 {[%emt 0:00:19]} O-O {[%emt 0:01:46]} 9. Be2 {[%emt 0:01:03]} Nc6 {[%emt 0:03:07]} 10. O-O {[%emt 0:01:02]} Ba7 {[%emt 0:07:55]} 11. Bf3 {[%emt 0:01:44]} Ne5 {[%emt 0:01:34]} 12. Nce2 {[%emt 0:04:56]} Re8 {[%emt 0:08:43]} 13. Ng3 {[%emt 0:03:25]} Nxf3+ {[%emt 0:02:15]} 14. gxf3 {[%emt 0:01:13]} Bh3 {[%emt 0:04:09]} 15. Re1 {[%emt 0:00:19]} h5 {[%emt 0:01:26]} 16. Ngf5 {[%emt 0:06:05]} Re5 {[%emt 0:06:18]} 17. Nh4 {[%emt 0:08:58]} Nh7 {[%emt 0:11:40]} 18. f4 {[%emt 0:04:40]} Qxh4 {[%emt 0:04:04]} 19. Kh1 {[%emt 0:00:07]} Ree8 {[%emt 0:05:40]} 20. Qf3 {[%emt 0:02:59]} Bxd4 {[%emt 0:00:59]} 21. Rg1 {[%emt 0:00:27]} Bf5 {[%emt 0:02:07]} 22. Qg2 {[%emt 0:00:58]} Bf6 {[%emt 0:02:00]} 23. Bd2 {[%emt 0:00:15]} Qg4 {[%emt 0:00:22]} 24. Raf1 {[%emt 0:01:13]} Qxg2+ {[%emt 0:02:14]} 25. Rxg2 {[%emt 0:00:10]} Bh3 {[%emt 0:00:20]} 26. Rxg7+ {[%emt 0:00:11]} 0-1

[Event "Seniors-LEM-65 Sachsen-Anhalt 2024"]
[Site "Magdeburg"]
[Date "2024.07.02"]
[Round "2.12"]
[White "Waagener, Ulrich"]
[Black "Krien, Hartmut"]
[Result "1/2-1/2"]
[ECO "A95"]
[WhiteElo "2080"]
[BlackElo "1928"]
[Annotator "NA RC"]
[PlyCount "54"]
[EventDate "2024.06.25"]
[EventType "swiss"]
[EventCountry "GER"]
[SourceTitle "playchess.com"]
[Source "ChessBase"]
[SourceQuality "1"]
[TimeControl "40/5400+30:1800+30"]

1. d4 {[%emt 0:00:05]} c6 {[%emt 0:00:41]} 2. Nf3 {[%emt 0:01:41]} d5 {[%emt 0:00:38]} 3. c4 {[%emt 0:01:31]} e6 {[%emt 0:01:14]} 4. Nc3 {[%emt 0:00:59]} f5 {[%emt 0:00:15]} 5. g3 {[%emt 0:04:29]} Nf6 {[%emt 0:00:22]} 6. Bg2 {[%emt 0:00:20]} Be7 {[%emt 0:00:55]} 7. O-O {[%emt 0:01:59]} O-O {[%emt 0:00:22]} 8. Rb1 {[%emt 0:01:45]} Ne4 {[%emt 0:02:25] A95: Classical Dutch: Classical Stonewall: 7 Nc3 c6.} 9. Ne5 {[%emt 0:02:31]} Qb6 {[%emt 0:04:31]} 10. Bf4 {[%emt 0:02:58]} g5 {[%emt 0:05:30]} 11. Nxe4 {[%emt 0:05:17]} gxf4 {[%emt 0:01:35]} 12. Nc3 {[%emt 0:00:34]} fxg3 {[%emt 0:01:40]} 13. hxg3 {[%emt 0:00:18]} Nd7 {[%emt 0:02:12]} 14. c5 {[%emt 0:04:01]} Qc7 {[%emt 0:03:28]} 15. Nd3 {[%emt 0:01:12]} e5 {[%emt 0:05:51]} 16. dxe5 {[%emt 0:06:22]} Nxc5 {[%emt 0:04:08]} 17. f4 {[%emt 0:05:23]} Ne4 {[%emt 0:01:30]} 18. Kh2 {[%emt 0:02:33]} Be6 {[%emt 0:11:50]} 19. Bh3 {[%emt 0:11:47]} Kh8 {[%emt 0:06:33]} 20. Qc1 {[%emt 0:04:42]} (20. Nf2 $15) 20... Rg8 {[%emt 0:07:15]} 21. Nxe4 {[%emt 0:00:43]} dxe4 {[%emt 0:00:28]} 22. Nc5 {[%emt 0:00:26]} Bxc5 {[%emt 0:03:25]} 23. Qxc5 {[%emt 0:00:11]} Rad8 {[%emt 0:02:57]} 24. Rbd1 $11 {[%emt 0:01:42]} Qg7 {[%emt 0:01:48]} 25. Qe3 {[%emt 0:03:25]} Rd5 {[%emt 0:01:21]} 26. Rxd5 {[%emt 0:01:24]} cxd5 {[%emt 0:00:21]} 27. Rg1 {[%emt 0:00:24]} b6 {[%emt 0:02:13]} 1/2-1/2

[Event "Seniors-LEM-65 Sachsen-Anhalt 2024"]
[Site "Magdeburg"]
[Date "2024.07.02"]
[Round "2.13"]
[White "Matthey, Harald"]
[Black "Niebuhr, Gerd"]
[Result "1-0"]
[ECO "A50"]
[WhiteElo "2064"]
[BlackElo "1917"]
[Annotator "NA RC"]
[PlyCount "43"]
[EventDate "2024.06.25"]
[EventType "swiss"]
[EventCountry "GER"]
[SourceTitle "playchess.com"]
[Source "ChessBase"]
[SourceQuality "1"]
[TimeControl "40/5400+30:1800+30"]

1. Nf3 {[%emt 0:00:04]} Nf6 {[%emt 0:00:15]} 2. d4 {[%emt 0:00:15]} g6 {[%emt 0:01:00]} 3. c4 {[%emt 0:00:13]} Bg7 {[%emt 0:00:39]} 4. g3 {[%emt 0:00:58]} b6 {[%emt 0:01:19]} 5. Bg2 {[%emt 0:01:44]} Bb7 {[%emt 0:00:14]} 6. O-O {[%emt 0:00:13]} O-O {[%emt 0:00:21]} 7. d5 {[%emt 0:01:06]} d6 {[%emt 0:03:34]} 8. Nd4 {[%emt 0:01:23]} Qd7 {[%emt 0:04:50]} 9. Nc3 {[%emt 0:08:14]} c5 {[%emt 0:03:34]} 10. Nc2 {[%emt 0:00:14]} a6 {[%emt 0:04:38]} 11. a4 {[%emt 0:00:53]} a5 {[%emt 0:02:47]} 12. e4 {[%emt 0:02:27]} e5 {[%emt 0:15:05]} 13. dxe6 {[%emt 0:07:34]} fxe6 {[%emt 0:02:17]} 14. e5 {[%emt 0:09:55]} Ne8 {[%emt 0:00:32]} 15. Bxb7 {[%emt 0:01:05]} Qxb7 {[%emt 0:00:22]} 16. exd6 {[%emt 0:00:24]} Nc6 {[%emt 0:02:07]} 17. Nb5 {[%emt 0:10:08]} Ne5 {[%emt 0:04:20]} 18. f4 {[%emt 0:04:35]} Nxc4 {[%emt 0:00:37]} 19. d7 {[%emt 0:00:59]} Nc7 {[%emt 0:02:42]} 20. Qe2 {[%emt 0:06:44]} Nxb2 {[%emt 0:05:00]} 21. Ra2 {[%emt 0:02:13]} Qd5 {[%emt 0:03:27]} 22. Rxb2 {[%emt 0:04:00]} 1-0

[Event "Seniors-LEM-65 Sachsen-Anhalt 2024"]
[Site "Magdeburg"]
[Date "2024.07.02"]
[Round "2.14"]
[White "Krueger, Wolfgang"]
[Black "Schmieder, Siegfried"]
[Result "1/2-1/2"]
[ECO "B09"]
[WhiteElo "2054"]
[BlackElo "1906"]
[Annotator "NA RC"]
[PlyCount "29"]
[EventDate "2024.06.25"]
[EventType "swiss"]
[EventCountry "GER"]
[SourceTitle "playchess.com"]
[Source "ChessBase"]
[SourceQuality "1"]
[TimeControl "40/5400+30:1800+30"]

1. e4 {[%emt 0:00:04]} d6 {[%emt 0:00:11]} 2. d4 {[%emt 0:00:15]} Nf6 {[%emt 0:00:32]} 3. Nc3 {[%emt 0:00:19]} g6 {[%emt 0:00:07]} 4. f4 {[%emt 0:00:21]} Bg7 {[%emt 0:01:16]} 5. a3 {[%emt 0:00:51]} O-O {[%emt 0:01:41]} 6. Nf3 {[%emt 0:00:41]} b6 {[%emt 0:04:06]} 7. Bd3 {[%emt 0:04:59]} Bb7 {[%emt 0:03:12]} 8. O-O {[%emt 0:06:32]} Nbd7 {[%emt 0:02:01]} 9. Qe1 {[%emt 0:12:23]} e6 {[%emt 0:09:03]} 10. Qh4 {[%emt 0:10:36]} c5 {[%emt 0:06:42]} 11. dxc5 {[%emt 0:22:52]} Nxc5 {[%emt 0:01:08]} 12. Re1 {[%emt 0:07:51]} Nxd3 {[%emt 0:05:37]} (12... Rc8 $17 13. Qh3 b5) 13. cxd3 {[%emt 0:00:01]} Qc8 {[%emt 0:05:11]} 14. Be3 {[%emt 0:02:16]} Ba6 {[%emt 0:07:15]} 15. Red1 $11 {[%emt 0:08:59]} (15. Rac1 $14) 1/2-1/2

[Event "Seniors-LEM-65 Sachsen-Anhalt 2024"]
[Site "Magdeburg"]
[Date "2024.07.02"]
[Round "2.15"]
[White "Winkler, Karl-Heinz"]
[Black "Jacob, Helmut"]
[Result "0-1"]
[ECO "B06"]
[WhiteElo "1933"]
[BlackElo "2047"]
[Annotator "NA RC"]
[PlyCount "102"]
[EventDate "2024.06.25"]
[EventType "swiss"]
[EventCountry "GER"]
[SourceTitle "playchess.com"]
[Source "ChessBase"]
[SourceQuality "1"]
[TimeControl "40/5400+30:1800+30"]

1. e4 {[%emt 0:00:30]} g6 {[%emt 0:00:11]} 2. d4 {[%emt 0:00:02]} d6 {[%emt 0:00:17]} 3. Nf3 {[%emt 0:01:14]} Bg7 {[%emt 0:00:14]} 4. Bc4 {[%emt 0:03:30]} h6 {[%emt 0:03:21]} 5. c3 {[%emt 0:10:35]} e6 {[%emt 0:00:25]} 6. O-O {[%emt 0:04:29]} Nd7 {[%emt 0:07:28]} 7. Qe2 {[%emt 0:10:27]} Ne7 {[%emt 0:04:10]} 8. Be3 {[%emt 0:04:46]} O-O {[%emt 0:02:05]} 9. Nbd2 {[%emt 0:07:04]} a6 {[%emt 0:06:47]} 10. a4 {[%emt 0:02:16]} b6 {[%emt 0:00:13]} 11. b4 {[%emt 0:02:09]} Bb7 {[%emt 0:03:56]} 12. Bd3 {[%emt 0:01:45]} f5 {[%emt 0:09:16]} 13. exf5 {[%emt 0:02:23]} exf5 {[%emt 0:00:30]} 14. Nb3 {[%emt 0:01:18]} Kh7 {[%emt 0:06:07]} 15. Rfe1 {[%emt 0:04:22]} Nd5 {[%emt 0:03:20]} 16. Bd2 {[%emt 0:00:33]} N5f6 {[%emt 0:02:39]} 17. Be3 {[%emt 0:10:13]} Re8 {[%emt 0:07:44]} 18. Qd1 $15 {[%emt 0:06:18]} Nd5 {[%emt 0:01:55]} 19. Bd2 {[%emt 0:01:07]} N5f6 {[%emt 0:02:23]} 20. Rxe8 {[%emt 0:03:29]} Qxe8 {[%emt 0:00:09]} 21. Qc2 {[%emt 0:01:07]} Qf7 {[%emt 0:02:30]} 22. Re1 {[%emt 0:03:25]} Re8 {[%emt 0:00:09]} 23. Rxe8 {[%emt 0:00:31]} Qxe8 {[%emt 0:00:39]} 24. Qd1 {[%emt 0:02:45]} Ne4 {[%emt 0:05:35]} 25. Ne1 {[%emt 0:01:35]} Nxd2 {[%emt 0:01:20]} 26. Qxd2 {[%emt 0:00:52]} Nf6 {[%emt 0:00:14]} 27. f3 {[%emt 0:00:57]} Qxa4 {[%emt 0:00:31]} 28. Bc2 {[%emt 0:01:35]} Qc6 {[%emt 0:07:17]} 29. Bd3 {[%emt 0:01:37]} Qe8 {[%emt 0:01:37]} 30. Bf1 {[%emt 0:02:04]} h5 {[%emt 0:01:38]} 31. Nd3 {[%emt 0:00:45]} Bh6 {[%emt 0:00:39]} 32. Qe2 {[%emt 0:03:26]} Qe3+ {[%emt 0:02:01]} 33. Qxe3 {[%emt 0:01:39]} Bxe3+ {[%emt 0:00:02]} 34. Kh1 {[%emt 0:00:09]} Kg7 {[%emt 0:03:53]} 35. c4 {[%emt 0:00:21]} Kf7 {[%emt 0:01:34]} 36. Nb2 {[%emt 0:02:04]} Ke7 {[%emt 0:01:15]} 37. Nd1 {[%emt 0:00:11]} Bh6 {[%emt 0:00:16]} 38. Kg1 {[%emt 0:00:13]} Bg7 {[%emt 0:00:34]} 39. Kf2 {[%emt 0:00:25]} Nd7 {[%emt 0:02:23]} 40. Ke3 {[%emt 0:03:09]} Nb8 {[%emt 0:02:25]} 41. Nf2 {[%emt 0:03:25]} Bh6+ {[%emt 0:02:18]} 42. Kd3 {[%emt 0:04:40]} Nc6 {[%emt 0:01:21]} 43. Kc3 {[%emt 0:02:40]} Bg7 {[%emt 0:00:14]} 44. b5 {[%emt 0:00:02]} Nb8 {[%emt 0:01:32]} 45. Kb4 {[%emt 0:03:16]} axb5 {[%emt 0:01:18]} 46. cxb5 {[%emt 0:02:11]} Nd7 {[%emt 0:03:39]} 47. Bc4 {[%emt 0:04:50]} Nf6 {[%emt 0:01:16]} 48. Nd3 {[%emt 0:00:47]} Nd5+ {[%emt 0:00:51]} 49. Bxd5 {[%emt 0:01:23]} Bxd5 {[%emt 0:00:02]} 50. Nf4 {[%emt 0:00:29]} Bf7 {[%emt 0:00:42]} 51. d5 {[%emt 0:01:34]} g5 {[%emt 0:00:41]} 0-1

[Event "Seniors-LEM-65 Sachsen-Anhalt 2024"]
[Site "Magdeburg"]
[Date "2024.07.02"]
[Round "2.16"]
[White "Kynast, Reinhard"]
[Black "Bauer, Burkhard"]
[Result "1/2-1/2"]
[ECO "A85"]
[WhiteElo "1901"]
[BlackElo "2043"]
[Annotator "NA RC"]
[PlyCount "61"]
[EventDate "2024.06.25"]
[EventType "swiss"]
[EventCountry "GER"]
[SourceTitle "playchess.com"]
[Source "ChessBase"]
[SourceQuality "1"]
[TimeControl "40/5400+30:1800+30"]

1. c4 {[%emt 0:00:30]} f5 {[%emt 0:04:15]} 2. Nc3 {[%emt 0:00:00]} Nf6 {[%emt 0:00:01]} 3. d4 {[%emt 0:00:13]} g6 {[%emt 0:00:04]} 4. Bg5 {[%emt 0:01:36]} Bg7 {[%emt 0:00:02]} 5. e3 {[%emt 0:00:33]} d6 {[%emt 0:00:03]} 6. Nf3 {[%emt 0:00:25]} O-O {[%emt 0:00:10]} 7. Bd3 {[%emt 0:00:22]} Na6 {[%emt 0:00:02] A85: Dutch Defence: 2 c4 Nf6 3 Nc3.} 8. O-O {[%emt 0:00:59]} c5 {[%emt 0:00:08]} 9. d5 {[%emt 0:06:20]} Nc7 {[%emt 0:00:16]} 10. Qc2 {[%emt 0:01:51]} Rb8 $14 {[%emt 0:00:17]} 11. Rab1 {[%emt 0:00:52]} Bd7 {[%emt 0:00:46]} 12. e4 {[%emt 0:04:42]} fxe4 {[%emt 0:00:35]} 13. Nxe4 {[%emt 0:00:35]} b5 {[%emt 0:00:26]} 14. b3 {[%emt 0:00:52]} Na6 {[%emt 0:08:19]} 15. a3 {[%emt 0:03:07]} Nc7 {[%emt 0:00:38]} 16. Rfe1 {[%emt 0:01:09]} Nce8 {[%emt 0:00:38]} 17. Nc3 {[%emt 0:02:45]} Nc7 {[%emt 0:01:16]} 18. Ne2 {[%emt 0:04:31]} e5 {[%emt 0:07:34]} 19. dxe6 {[%emt 0:05:17]} Bxe6 {[%emt 0:01:44]} 20. Ng3 {[%emt 0:02:45]} Qd7 {[%emt 0:00:57]} 21. h4 {[%emt 0:05:08]} Kh8 {[%emt 0:06:37]} 22. Nd2 {[%emt 0:10:05]} Bg8 {[%emt 0:03:27]} 23. h5 {[%emt 0:03:19]} gxh5 {[%emt 0:00:30]} 24. Nf5 {[%emt 0:01:01]} Ne6 {[%emt 0:01:58]} 25. Be3 {[%emt 0:06:52]} Ng4 {[%emt 0:00:19]} 26. Nxg7 {[%emt 0:00:30]} Nxe3 {[%emt 0:01:16]} 27. Rxe3 {[%emt 0:00:50]} Qxg7 {[%emt 0:01:01]} 28. Rg3 {[%emt 0:02:33]} Qe5 {[%emt 0:01:23]} 29. Nf3 {[%emt 0:01:12]} Qf6 {[%emt 0:04:07]} 30. Rd1 {[%emt 0:07:12]} Nf4 {[%emt 0:02:59]} 31. cxb5 {[%emt 0:07:34]} 1/2-1/2

[Event "Seniors-LEM-65 Sachsen-Anhalt 2024"]
[Site "Magdeburg"]
[Date "2024.07.02"]
[Round "2.17"]
[White "Lapp, Karl"]
[Black "Funke, Arnold"]
[Result "1-0"]
[ECO "C10"]
[WhiteElo "2001"]
[BlackElo "1902"]
[Annotator "NA RC"]
[PlyCount "63"]
[EventDate "2024.06.25"]
[EventType "swiss"]
[EventCountry "GER"]
[SourceTitle "playchess.com"]
[Source "ChessBase"]
[SourceQuality "1"]
[TimeControl "40/5400+30:1800+30"]

1. e4 {[%emt 0:00:04]} e6 {[%emt 0:02:05]} 2. d4 {[%emt 0:00:12]} d5 {[%emt 0:00:08]} 3. Nd2 {[%emt 0:00:13]} dxe4 {[%emt 0:00:38]} 4. Nxe4 {[%emt 0:00:12]} Be7 {[%emt 0:00:02]} 5. Nf3 {[%emt 0:00:17]} Nf6 {[%emt 0:00:07]} 6. Nxf6+ {[%emt 0:00:44]} Bxf6 {[%emt 0:00:13]} 7. Bd3 {[%emt 0:00:23]} O-O {[%emt 0:00:09] C10: French with 3 Nc3: Unusual Black 3rd moves and 3...dxe4.} 8. c3 {[%emt 0:00:51]} b6 {[%emt 0:00:07]} 9. Qc2 {[%emt 0:02:03]} h6 {[%emt 0:01:09]} 10. Be4 {[%emt 0:00:30]} c6 {[%emt 0:00:13]} 11. g4 {[%emt 0:02:31]} Be7 {[%emt 0:05:49]} ({Better is} 11... Re8) 12. Be3 {[%emt 0:05:04]} f5 {[%emt 0:04:10]} 13. gxf5 {[%emt 0:00:38]} exf5 {[%emt 0:00:06]} 14. Bd3 {[%emt 0:00:42]} f4 {[%emt 0:00:30]} 15. Ne5 {[%emt 0:06:12]} g5 {[%emt 0:13:47]} 16. Bc4+ {[%emt 0:09:55]} Kh8 {[%emt 0:03:01]} 17. Ng6+ {[%emt 0:00:26]} Kg7 {[%emt 0:00:47]} 18. Nxf8 {[%emt 0:00:12]} Qxf8 {[%emt 0:01:43]} 19. Bd2 {[%emt 0:01:27]} Bg4 {[%emt 0:04:54]} 20. Be2 {[%emt 0:00:54]} Bf5 {[%emt 0:02:06]} 21. Bd3 {[%emt 0:01:22]} Bg4 {[%emt 0:03:04]} 22. Be4 {[%emt 0:04:37]} Bh5 {[%emt 0:07:09]} 23. f3 {[%emt 0:01:42]} Qf6 {[%emt 0:01:27]} 24. O-O-O {[%emt 0:01:21]} Bf7 {[%emt 0:00:17]} 25. Rdg1 {[%emt 0:09:21]} Qe6 {[%emt 0:05:00]} 26. h4 {[%emt 0:00:54]} Qxa2 {[%emt 0:03:50]} 27. hxg5 {[%emt 0:01:37]} Bxg5 $18 {[%emt 0:04:39]} 28. Bxf4 {[%emt 0:00:56]} Kf6 {[%emt 0:01:40]} 29. Bxg5+ {[%emt 0:00:20]} hxg5 {[%emt 0:00:14]} 30. Qh2 {[%emt 0:03:02]} Qa1+ {[%emt 0:00:33]} 31. Bb1 {[%emt 0:00:29]} Bg6 {[%emt 0:05:48]} 32. Qd6+ {[%emt 0:00:05]} 1-0

[Event "Seniors-LEM-65 Sachsen-Anhalt 2024"]
[Site "Magdeburg"]
[Date "2024.07.02"]
[Round "2.19"]
[White "Waltenberger, Udo"]
[Black "Schulz, Hans-Werner"]
[Result "1/2-1/2"]
[ECO "A30"]
[WhiteElo "1993"]
[BlackElo "1896"]
[Annotator "NA RC"]
[PlyCount "119"]
[EventDate "2024.06.25"]
[EventType "swiss"]
[EventCountry "GER"]
[SourceTitle "playchess.com"]
[Source "ChessBase"]
[SourceQuality "1"]
[TimeControl "40/5400+30:1800+30"]

1. Nf3 {[%emt 0:00:05]} c5 {[%emt 0:00:23]} 2. g3 {[%emt 0:00:04]} Nc6 {[%emt 0:00:39]} 3. c4 {[%emt 0:00:08]} b6 {[%emt 0:01:49]} 4. Bg2 {[%emt 0:00:09]} Bb7 {[%emt 0:00:26]} 5. O-O {[%emt 0:00:49]} Nf6 {[%emt 0:03:08]} 6. Nc3 {[%emt 0:00:12]} g6 {[%emt 0:00:38]} 7. e4 {[%emt 0:08:52]} d6 {[%emt 0:01:14]} 8. d4 $14 {[%emt 0:01:07]} cxd4 {[%emt 0:00:16]} 9. Nxd4 {[%emt 0:00:02]} Nxd4 {[%emt 0:05:30]} 10. Qxd4 {[%emt 0:00:03]} Bg7 {[%emt 0:00:21]} 11. Bd2 {[%emt 0:03:17]} O-O {[%emt 0:00:10]} 12. Qd3 {[%emt 0:00:11]} Nd7 {[%emt 0:01:07]} 13. Rac1 {[%emt 0:02:06]} Ne5 {[%emt 0:11:45]} 14. Qe2 {[%emt 0:00:23]} Qd7 {[%emt 0:01:02]} 15. Rfd1 {[%emt 0:06:07]} Rfc8 {[%emt 0:02:26]} 16. b3 {[%emt 0:00:04]} Qe6 {[%emt 0:06:24]} 17. Be3 {[%emt 0:07:39]} Rd8 {[%emt 0:02:32]} 18. h3 {[%emt 0:08:27]} Qc8 {[%emt 0:07:55]} 19. Bd4 {[%emt 0:07:25]} Nc6 {[%emt 0:03:38]} 20. Bxg7 {[%emt 0:00:05]} Kxg7 {[%emt 0:00:02]} 21. Rd2 {[%emt 0:01:32]} Re8 {[%emt 0:03:31]} 22. Rcd1 {[%emt 0:00:21]} Nd8 {[%emt 0:01:52]} 23. Nd5 {[%emt 0:07:08]} Ne6 {[%emt 0:01:21]} 24. Qe3 {[%emt 0:02:34]} Nc7 {[%emt 0:00:56]} 25. e5 {[%emt 0:04:53]} Nxd5 {[%emt 0:00:58]} 26. Bxd5 {[%emt 0:02:03]} dxe5 {[%emt 0:03:20]} 27. Bxb7 {[%emt 0:00:36]} Qxb7 {[%emt 0:00:16]} 28. Qxe5+ {[%emt 0:01:20]} f6 {[%emt 0:01:31]} 29. Qe6 {[%emt 0:01:15]} Rac8 {[%emt 0:02:02]} 30. Rd7 {[%emt 0:00:58]} Rc7 {[%emt 0:00:06]} 31. Rxc7 {[%emt 0:01:36]} Qxc7 {[%emt 0:00:20]} 32. Rd7 {[%emt 0:00:09]} Qc5 {[%emt 0:01:40]} 33. Rxa7 {[%emt 0:01:12]} Kf8 {[%emt 0:00:02]} 34. Rb7 {[%emt 0:02:15]} Rd8 {[%emt 0:05:28]} 35. Qxb6 {[%emt 0:03:29]} Rd1+ {[%emt 0:01:30]} 36. Kg2 {[%emt 0:09:06]} Qe5 {[%emt 0:00:51]} 37. Qe3 {[%emt 0:00:52]} Qd6 {[%emt 0:01:29]} 38. Rb6 {[%emt 0:02:42]} Qd8 {[%emt 0:05:33]} 39. Re6 {[%emt 0:05:56]} Qd7 {[%emt 0:03:03]} 40. Qe2 {[%emt 0:03:26]} Rd4 {[%emt 0:00:58]} 41. Re4 {[%emt 0:34:22]} Rd6 {[%emt 0:33:11]} 42. Qf3 {[%emt 0:02:24]} Kf7 {[%emt 0:02:20]} 43. Re2 {[%emt 0:00:39]} e6 {[%emt 0:02:36]} 44. Qe3 {[%emt 0:00:00]} Rd3 {[%emt 0:00:00]} 45. Qb6 {[%emt 0:00:00]} e5 {[%emt 0:00:00]} 46. f3 {[%emt 0:00:00]} Rd6 {[%emt 0:00:00]} 47. Qf2 {[%emt 0:00:00]} Rd4 {[%emt 0:00:00]} 48. Rc2 {[%emt 0:00:00]} f5 {[%emt 0:00:00]} 49. Re2 {[%emt 0:00:00]} Kf6 {[%emt 0:00:00]} 50. Qe3 {[%emt 0:00:00]} Qd6 {[%emt 0:00:00]} 51. Qh6 {[%emt 0:00:00]} Rd1 {[%emt 0:00:00]} 52. h4 {[%emt 0:00:00]} Qc5 {[%emt 0:00:00]} 53. Qg5+ {[%emt 0:00:00]} Ke6 {[%emt 0:00:00]} 54. Qe3 {[%emt 0:00:00]} Qd6 {[%emt 0:00:00]} 55. c5 {[%emt 0:00:00]} Qd5 {[%emt 0:00:00]} 56. c6 {[%emt 0:00:00]} Rd3 {[%emt 0:00:00]} 57. Qf2 {[%emt 0:00:00]} Qxc6 {[%emt 0:00:00]} 58. Rc2 {[%emt 0:00:00]} Qd6 {[%emt 0:00:00]} 59. Qc5 {[%emt 0:00:00]} Rd2+ {[%emt 0:00:00]} 60. Kh3 {[%emt 0:00:00]} 1/2-1/2